bitfinex/quotes_ETHUSD_20250426
["timestamp","ask_amount","ask_price","bid_price","bid_amount"]
[1745709437574,11.41207593,1817.5,1817.1,4.656]
[1745709439211,11.41207593,1817.5,1817.1,10.15914395]
[1745709439397,5.91,1817.5,1817.2,0.7969]
[1745709439897,6.326006,1817.5,1817.2,0.7969]
[1745709440882,6.7012,1817.8,1817.3,5.50247239]
[1745709441098,0.03410438,1818.0,1817.3,5.50247239]
[1745709441099,0.55083305,1817.9,1817.3,0.7969]
[1745709441305,3.0,1817.7,1817.3,0.7969]
[1745709441699,5.50133827,1817.8,1817.3,6.29944605]
[1745709441700,8.50135345,1817.8,1817.3,6.29944605]
[1745709441876,8.50135345,1817.8,1817.4,0.62994461]
[1745709442077,5.50148069,1817.7,1817.4,0.62994461]
[1745709442414,0.03410438,1818.0,1817.5,5.4509]
[1745709442615,0.03410438,1818.0,1817.5,0.7969]
[1745709442616,6.2921228,1817.9,1817.5,0.7969]
[1745709442908,5.50127686,1817.8,1817.6,4.654]
[1745709444423,5.50127686,1817.8,1817.5,0.7969]
[1745709444723,5.50127686,1817.8,1817.6,4.654]
[1745709445622,7.12392651,1817.9,1817.6,4.654]
[1745709445803,11.83367236,1817.9,1817.6,5.19909]
[1745709446325,6.33272651,1817.9,1817.6,10.70068438]
[1745709446621,5.91,1817.9,1817.6,10.70068438]
[1745709446823,0.03410438,1818.0,1817.8,5.50102132]
[1745709446991,5.53468832,1818.0,1817.8,0.62910213]
[1745709447188,5.53468832,1818.0,1817.7,0.79]
[1745709447826,0.03410438,1818.0,1817.7,0.79]
[1745709448031,5.50093394,1817.9,1817.7,0.79]
[1745709448897,5.53480341,1818.0,1817.7,0.79]
[1745709449421,5.50086913,1817.9,1817.7,0.79]
[1745709449632,5.50086913,1817.9,1817.7,5.443]
[1745709450538,5.50086913,1817.9,1817.6,0.54509]
[1745709450839,5.50086913,1817.9,1817.6,4.653]
[1745709450840,5.5016295,1817.7,1817.6,4.653]
[1745709452641,6.87659496,1817.8,1817.6,4.653]
[1745709453151,12.37801529,1817.8,1817.6,4.653]
[1745709453341,5.50145788,1817.7,1817.6,4.653]
[1745709454150,5.50186806,1817.6,1817.3,0.8112]
[1745709454341,5.50186806,1817.6,1817.5,4.652]
[1745709455520,0.411068,1817.6,1817.5,4.652]
[1745709455862,11.41169191,1817.7,1817.5,4.652]
[1745709457260,8.91,1817.7,1817.6,0.7838]
[1745709457757,5.91,1817.7,1817.6,1.32738]
[1745709459533,5.91,1817.7,1817.5,4.652]
[1745709460571,6.26247334,1817.9,1817.5,4.652]
[1745709460737,5.50116027,1817.8,1817.5,4.652]
[1745709461069,6.26248696,1817.9,1817.5,10.15405854]
[1745709461557,11.99560319,1818.0,1817.6,6.28553728]
[1745709461754,11.99560319,1818.0,1817.6,7.37929101]
[1745709462065,11.44465611,1818.0,1817.6,1.87755373]
[1745709462529,11.44465611,1818.0,1817.6,7.37908385]
[1745709462729,11.44471698,1818.0,1817.6,7.37908385]
[1745709466271,5.94410438,1818.0,1817.6,1.87755373]
[1745709466456,5.5346875,1818.0,1817.6,7.37909199]
[1745709466764,5.5346875,1818.0,1817.7,0.7379092]
[1745709467369,0.03410438,1818.0,1817.7,0.7379092]
[1745709467669,0.03410438,1818.0,1817.8,0.8008]
[1745709468777,0.03410438,1818.0,1817.9,4.652]
[1745709469274,5.53465443,1818.0,1817.9,4.652]
[1745709477081,0.03410438,1818.0,1817.9,4.652]
[1745709477858,0.03410438,1818.0,1817.9,5.8769]
[1745709479450,5.53465443,1818.0,1817.9,5.4117]
[1745709479782,5.53465443,1818.0,1817.9,4.652]
[1745709480784,5.53465443,1818.0,1817.7,1.5308092]
[1745709480985,5.53465443,1818.0,1817.9,4.651]
[1745709481753,0.03410438,1818.0,1817.9,4.651]
[1745709482653,0.03410438,1818.0,1817.7,7.03206518]
[1745709482856,0.03410438,1818.0,1817.8,5.35420652]
[1745709483753,0.03410438,1818.0,1817.8,5.40921225]
[1745709483952,0.03410438,1818.0,1817.8,10.91017242]
[1745709484169,5.91,1818.2,1818.0,0.7929]
[1745709484491,8.49964603,1818.3,1818.0,0.7929]
[1745709484678,5.49964603,1818.3,1818.0,1.42226352]
[1745709487668,5.92019211,1818.3,1818.0,1.42226352]
[1745709487869,5.50046996,1818.1,1817.8,6.14710652]
[1745709490185,11.00101466,1818.1,1817.8,6.14710652]
[1745709490381,5.50058959,1818.0,1817.8,5.4439]
[1745709491615,5.50058959,1818.0,1817.9,4.65]
[1745709492216,11.00097949,1818.1,1817.9,4.65]
[1745709492422,5.50046996,1818.1,1817.9,4.65]
[1745709492764,5.50047126,1818.1,1817.9,4.65]
[1745709493512,11.0010073,1818.1,1817.9,4.65]
[1745709493705,5.50055005,1818.0,1817.9,4.65]
[1745709493901,5.50047126,1818.1,1817.9,4.65]
[1745709494707,5.50055005,1818.0,1817.9,4.65]
[1745709494885,5.50047126,1818.1,1817.9,4.65]
[1745709496416,5.50047126,1818.1,1818.0,4.65]
[1745709500011,5.50012001,1818.2,1818.0,4.65]
[1745709507625,5.50024751,1818.1,1818.0,4.65]
[1745709511651,5.50012001,1818.2,1818.0,4.65]
[1745709511952,5.91644531,1818.3,1818.0,5.115]
[1745709513144,3.41663457,1818.3,1818.0,10.61541716]
[1745709513835,3.41663457,1818.3,1818.0,5.115]
[1745709514047,3.41663457,1818.3,1818.0,10.61553929]
[1745709515365,3.0,1818.3,1818.1,0.8074]
[1745709515563,3.0,1818.3,1818.1,1.94967266]
[1745709518977,5.91817294,1818.4,1818.1,1.94967266]
[1745709524280,0.41882612,1818.4,1818.1,1.94967266]
[1745709524482,15.04701887,1818.5,1818.1,1.94967266]
[1745709526175,9.96462482,1818.5,1818.1,1.94967266]
[1745709526381,9.96462482,1818.5,1818.1,7.44974063]
[1745709526604,9.96462482,1818.5,1818.2,0.74497406]
[1745709528975,5.49951602,1818.4,1818.1,1.94967266]
[1745709529476,5.50041018,1818.1,1818.0,4.649]
[1745709529673,6.54889061,1818.1,1818.0,4.649]
[1745709531601,1.04848043,1818.1,1818.0,4.649]
[1745709531806,11.41012904,1818.2,1818.0,4.649]
[1745709533904,16.91032172,1818.2,1818.0,4.649]
[1745709534207,5.50024751,1818.1,1818.0,4.649]
[1745709541708,9.01408069,1818.1,1817.7,0.829]
[1745709541914,0.5506134,1817.9,1817.7,4.648]
[1745709542211,5.50129907,1817.8,1817.7,4.648]
[1745709542399,5.50129907,1817.8,1817.6,16.505]
[1745709542600,5.50129907,1817.8,1817.7,4.648]
[1745709545916,5.91702183,1817.9,1817.7,4.648]
[1745709546312,11.41815187,1817.9,1817.7,4.648]
[1745709546611,5.50115524,1817.8,1817.7,4.648]
[1745709548814,5.91702187,1817.9,1817.7,4.648]
[1745709552025,5.50115524,1817.8,1817.7,4.648]
[1745709552429,5.91696119,1817.9,1817.7,4.648]
[1745709552722,5.50095709,1817.9,1817.7,4.648]
[1745709552921,8.50071094,1818.0,1817.7,4.648]
[1745709553128,8.50071094,1818.0,1817.8,0.8147]
[1745709553491,5.50105963,1817.9,1817.7,4.648]
[1745709553693,5.50115524,1817.8,1817.7,4.648]
[1745709555337,0.807,1817.8,1817.6,4.649]
[1745709555483,6.55086914,1817.7,1817.6,4.649]
[1745709556759,5.50179702,1817.6,1817.3,0.8216]
[1745709557063,5.50179702,1817.6,1817.5,4.649]
[1745709558206,12.46070079,1817.7,1817.5,4.649]
[1745709558409,6.95911414,1817.7,1817.5,4.649]
[1745709558609,12.46068935,1817.7,1817.5,4.649]
[1745709559211,5.91,1817.7,1817.5,4.649]
[1745709559407,5.91,1817.7,1817.5,11.98765822]
[1745709560317,5.92363859,1817.9,1817.5,11.98765822]
[1745709560615,14.41074667,1818.0,1817.6,0.8022]
[1745709561339,3.0,1818.0,1817.6,6.3038907]
[1745709561547,3.0,1818.0,1817.7,0.8022]
[1745709561749,3.0,1818.0,1817.7,7.48410146]
[1745709562117,0.4155615,1818.1,1817.8,5.5011449]
[1745709562330,8.50005731,1818.2,1817.9,4.648]
[1745709562644,8.50005731,1818.2,1818.0,0.8022]
[1745709562847,11.40966505,1818.3,1818.0,0.8022]
[1745709563020,5.91,1818.5,1818.0,7.39783583]
[1745709563225,11.40920081,1818.5,1818.1,5.50023356]
[1745709563525,11.82629161,1818.5,1818.1,5.50023356]
[1745709563734,11.82629161,1818.5,1818.1,5.50001297]
[1745709563735,6.3270908,1818.5,1818.1,5.50001297]
[1745709563939,5.91,1818.5,1818.4,0.8022]
[1745709564166,3.0,1818.8,1818.4,5.4502]
[1745709564484,8.49823433,1818.8,1818.4,10.94951637]
[1745709565077,5.49823433,1818.8,1818.4,10.94951637]
[1745709565279,5.49823433,1818.8,1818.4,5.4502]
[1745709565467,5.49823433,1818.8,1818.4,10.94953601]
[1745709565666,8.49823433,1818.8,1818.4,5.4502]
[1745709565868,13.99666442,1818.8,1818.4,5.4502]
[1745709566063,8.49823433,1818.8,1818.4,6.54517107]
[1745709566683,13.99663957,1818.8,1818.4,6.54517107]
[1745709567156,8.49823433,1818.8,1818.4,6.54517107]
[1745709567572,8.91656315,1818.8,1818.4,6.54517107]
[1745709568776,8.91660688,1818.8,1818.4,6.54517107]
[1745709569283,5.49843541,1818.7,1818.4,6.54517107]
[1745709573458,5.49843541,1818.7,1818.5,0.65451711]
[1745709575199,5.49953222,1818.4,1818.3,4.646]
[1745709575449,6.04977326,1818.5,1818.3,4.646]
[1745709576263,0.5506112,1818.5,1818.3,4.646]
[1745709576593,6.04974572,1818.5,1818.3,4.646]
[1745709578085,5.49913452,1818.5,1818.3,4.646]
[1745709578280,8.49888146,1818.6,1818.3,4.646]
[1745709578480,8.49888146,1818.6,1818.4,0.7716]
[1745709578681,0.40797636,1818.8,1818.4,1.31336]
[1745709578887,8.49829009,1818.8,1818.4,1.31336]
[1745709579086,5.49846777,1818.7,1818.4,1.31336]
[1745709579595,8.49828639,1818.8,1818.4,6.81268838]
[1745709580095,5.49828639,1818.8,1818.4,6.81268838]
[1745709580295,10.9966775,1818.8,1818.5,0.68126884]
[1745709580504,5.49828639,1818.8,1818.4,1.31336]
[1745709580665,10.99667775,1818.8,1818.4,1.31336]
[1745709580866,5.49828639,1818.8,1818.4,1.31336]
[1745709581901,5.49828639,1818.8,1818.4,6.81269975]
[1745709582506,5.49828639,1818.8,1818.4,1.31336]
[1745709582704,8.90296621,1818.9,1818.5,0.775]
[1745709582940,5.49801127,1818.9,1818.5,6.27389973]
[1745709583088,5.49801127,1818.9,1818.6,0.62738997]
[1745709583280,5.49801127,1818.9,1818.7,4.646]
[1745709583812,11.95817212,1819.0,1818.8,0.775]
[1745709585500,5.49782835,1818.9,1818.8,0.775]
[1745709585701,5.49782835,1818.9,1818.7,5.421]
[1745709585903,5.49782835,1818.9,1818.7,6.025839]
[1745709586201,5.49782835,1818.9,1818.7,5.250839]
[1745709586202,6.04874183,1818.8,1818.7,5.250839]
[1745709586407,6.04874183,1818.8,1818.7,4.646]
[1745709591498,9.04874183,1818.8,1818.7,4.646]
[1745709592323,3.5506112,1818.8,1818.6,4.644]
[1745709592524,5.49877763,1818.6,1818.3,0.78]
[1745709592691,5.49877763,1818.6,1818.4,4.644]
[1745709593202,5.49860447,1818.7,1818.4,5.1864]
[1745709595837,9.4606112,1818.8,1818.4,5.1864]
[1745709595838,14.95888184,1818.8,1818.5,0.8114]
[1745709596130,8.91,1818.8,1818.5,5.49897509]
[1745709596291,8.91,1818.8,1818.6,0.8114]
[1745709596693,5.91,1818.8,1818.6,0.8114]
[1745709598134,5.91,1818.8,1818.6,6.31009711]
[1745709598329,6.04832093,1819.0,1818.7,0.63100971]
[1745709598833,5.49782835,1818.9,1818.8,4.644]
[1745709599000,6.0482976,1819.0,1818.8,4.644]
[1745709599735,5.49782835,1818.9,1818.8,4.644]
[1745709600441,6.0482976,1819.0,1818.8,4.644]
[1745709600442,6.04837931,1819.0,1818.8,4.644]
[1745709600621,11.54618848,1819.0,1818.8,4.644]
[1745709600830,5.49782835,1818.9,1818.8,4.644]
[1745709601001,6.04837931,1819.0,1818.8,5.17150097]
[1745709601002,6.04828956,1819.0,1818.8,5.17150097]
[1745709602732,5.91681652,1819.1,1818.8,5.17150097]
[1745709602975,5.91681652,1819.1,1818.9,0.8221]
[1745709603643,5.49723726,1819.1,1818.9,0.8221]
[1745709603852,5.49752611,1819.0,1818.9,0.8221]
[1745709604027,5.49782835,1818.9,1818.8,5.17150097]
[1745709604731,5.49782835,1818.9,1818.5,5.4989012]
[1745709604732,5.49833102,1818.8,1818.5,0.7872]
[1745709605038,5.49833102,1818.8,1818.6,4.644]
[1745709605859,5.49835341,1818.8,1818.6,4.644]
[1745709607434,5.49843294,1818.7,1818.6,4.644]
[1745709607638,5.49830342,1818.8,1818.6,4.644]
[1745709607826,5.49830342,1818.8,1818.5,0.7872]
[1745709608160,5.49843294,1818.7,1818.6,4.644]
[1745709608333,5.49843294,1818.7,1818.6,5.18712]
[1745709609287,5.49832381,1818.8,1818.6,5.18712]
[1745709610156,5.49832381,1818.8,1818.7,4.644]
[1745709612777,5.49832381,1818.8,1818.6,0.54312]
[1745709612999,5.49832381,1818.8,1818.7,4.644]
[1745709623785,5.49852955,1818.7,1818.5,0.7872]
[1745709623951,5.49933015,1818.5,1818.3,0.768]
[1745709624146,5.49933015,1818.5,1818.3,4.643]
[1745709624147,5.49934007,1818.4,1818.3,4.643]
[1745709624352,5.49933015,1818.5,1818.3,4.643]
[1745709624353,5.49921764,1818.5,1818.3,4.643]
[1745709624565,5.49921764,1818.5,1818.3,5.1073]
[1745709626782,5.49904779,1818.5,1818.3,5.1073]
[1745709630284,5.49904779,1818.5,1818.4,4.643]
[1745709631891,5.49987107,1818.3,1818.1,17.269]
[1745709632101,5.49987107,1818.3,1818.2,4.643]
[1745709633088,5.49987107,1818.3,1818.1,18.9959]
[1745709633297,5.49987107,1818.3,1818.2,4.643]
[1745709635695,5.49964252,1818.3,1818.2,4.643]
[1745709635863,5.49948954,1818.4,1818.2,4.643]
[1745709636064,10.99911841,1818.4,1818.2,4.643]
[1745709636703,5.49964252,1818.3,1818.2,4.643]
[1745709637198,11.40914998,1818.5,1818.2,6.00010584]
[1745709637398,5.91,1818.5,1818.2,11.49991471]
[1745709638607,5.91,1818.5,1818.2,6.00010584]
[1745709638823,11.40907349,1818.5,1818.2,6.00010584]
[1745709638968,11.40907349,1818.5,1818.3,0.60001058]
[1745709640818,16.90839018,1818.5,1818.2,6.00010584]
[1745709641107,11.40907349,1818.5,1818.2,6.00010584]
[1745709642307,10.99839097,1818.5,1818.2,6.00010584]
[1745709642512,5.49907349,1818.5,1818.2,6.00010584]
[1745709642716,3.0,1818.6,1818.2,1.35710584]
[1745709643031,5.49903766,1818.5,1818.3,4.644]
[1745709643689,5.49934007,1818.4,1818.3,4.644]
[1745709646198,5.49964293,1818.3,1818.1,16.501]
[1745709646407,5.49964293,1818.3,1818.2,4.644]
[1745709649621,5.49964293,1818.3,1818.1,16.501]
[1745709649807,5.49964293,1818.3,1818.2,4.644]
[1745709651532,5.49964293,1818.3,1818.2,4.594]
[1745709651894,5.49964293,1818.3,1818.1,16.501]
[1745709651895,5.499945,1818.2,1818.1,16.501]
[1745709652093,5.499945,1818.2,1818.1,21.145]
[1745709657932,16.90954646,1818.3,1818.1,21.145]
[1745709658114,16.90958122,1818.3,1818.1,21.145]
[1745709658305,5.499945,1818.2,1818.1,21.145]
[1745709661442,11.4098551,1818.3,1818.1,21.145]
[1745709661609,5.499945,1818.2,1818.1,21.145]
[1745709663044,5.499945,1818.2,1818.1,4.644]
[1745709664439,11.40964266,1818.3,1818.1,4.644]
[1745709664748,5.499945,1818.2,1818.1,4.644]
[1745709669347,13.22110152,1818.3,1818.1,4.644]
[1745709669552,12.45850152,1818.3,1818.1,4.644]
[1745709669739,11.409839,1818.3,1818.1,4.644]
[1745709670664,16.90974097,1818.3,1818.1,4.644]
[1745709670829,11.409839,1818.3,1818.1,4.644]
[1745709671550,5.91,1818.3,1818.1,10.89936347]
[1745709671743,5.49916279,1818.5,1818.2,1.08993635]
[1745709671921,12.58682908,1818.6,1818.2,6.58987174]
[1745709672123,5.91,1818.6,1818.3,0.7552]
[1745709672553,5.91,1818.6,1818.3,6.25476252]
[1745709672941,5.91,1818.6,1818.3,0.7552]
[1745709673145,5.91,1818.6,1818.3,1.48968888]
[1745709673343,5.49831198,1818.8,1818.3,1.48968888]
[1745709673541,5.49794457,1818.9,1818.5,0.7552]
[1745709673757,12.17535002,1819.0,1818.5,5.3972]
[1745709673937,12.17535002,1819.0,1818.5,10.89603204]
[1745709674339,5.49783455,1818.9,1818.5,10.89603204]
[1745709675169,5.49785143,1818.9,1818.5,10.89603204]
[1745709675323,5.49785143,1818.9,1818.5,12.53556348]
[1745709675858,5.49785143,1818.9,1818.5,7.03673144]
[1745709676062,5.49815335,1818.8,1818.5,7.03673144]
[1745709676267,5.49815335,1818.8,1818.5,4.642]
[1745709676564,5.49869688,1818.7,1818.5,4.642]
[1745709676931,6.24883524,1819.3,1818.8,5.49790869]
[1745709677131,12.15833209,1819.5,1819.0,5.49732427]
[1745709677332,5.4967349,1819.3,1818.9,5.99579087]
[1745709678160,5.49692997,1819.2,1818.9,5.99579087]
[1745709682659,5.49692997,1819.2,1818.9,5.446]
[1745709682859,5.49724708,1819.1,1818.9,4.642]
[1745709683635,5.49752611,1819.0,1818.9,4.642]
[1745709684785,5.49752611,1819.0,1818.7,0.7668]
[1745709684943,5.49785725,1818.9,1818.8,4.639]
[1745709685138,6.80505629,1819.0,1818.8,4.639]
[1745709687544,0.55013794,1819.0,1818.8,4.639]
[1745709687745,5.49740092,1819.1,1818.8,4.639]
[1745709688273,10.99492038,1819.1,1818.8,4.639]
[1745709688479,5.49740092,1819.1,1818.8,4.639]
[1745709690560,5.91,1819.2,1818.9,0.8046]
[1745709690750,5.91,1819.2,1818.9,6.30230856]
[1745709691145,5.91,1819.2,1818.9,0.8046]
[1745709693849,11.40694798,1819.2,1818.9,0.8046]
[1745709694350,5.91,1819.2,1818.9,0.8046]
[1745709695147,14.54382049,1819.3,1818.9,0.8046]
[1745709695362,9.04694509,1819.3,1818.9,0.8046]
[1745709696396,9.04694509,1819.3,1818.9,6.30239253]
[1745709696566,11.40647229,1819.4,1819.0,5.4974119]
[1745709698589,11.40647229,1819.4,1818.9,7.50584085]
[1745709699060,5.49669477,1819.3,1818.9,7.50584085]
[1745709699265,5.49669477,1819.3,1819.0,0.75058409]
[1745709700797,5.49669477,1819.3,1819.1,4.638]
[1745709701901,6.04683271,1819.3,1819.1,4.638]
[1745709702813,0.55013794,1819.3,1819.1,4.638]
[1745709704165,6.04675863,1819.3,1819.1,4.638]
[1745709704683,0.55013794,1819.3,1819.1,4.638]
[1745709705182,8.4965134,1819.4,1819.1,4.638]
[1745709705365,5.4965134,1819.4,1819.1,4.638]
[1745709708285,5.49663715,1819.3,1819.1,4.638]
[1745709709407,5.49649258,1819.4,1819.2,0.8065]
[1745709710513,5.4963487,1819.4,1819.2,0.8065]
[1745709710699,5.4963487,1819.4,1819.1,4.638]
[1745709714229,1.36653794,1819.3,1819.1,4.638]
[1745709714453,5.49742436,1819.1,1818.8,0.8277]
[1745709714608,5.4976503,1819.0,1818.9,4.637]
[1745709714807,5.4976503,1819.0,1818.6,6.31949621]
[1745709715107,5.4976503,1819.0,1818.7,4.637]
[1745709715307,6.04813592,1818.9,1818.8,4.637]
[1745709716754,6.04813592,1818.9,1818.6,0.8208]
[1745709717054,6.04813592,1818.9,1818.7,4.637]
[1745709717208,5.49813063,1818.8,1818.7,4.637]
[1745709717408,6.31073063,1818.8,1818.7,4.637]
[1745709718750,0.8126,1818.8,1818.7,4.637]
[1745709718907,6.04811595,1818.9,1818.7,4.637]
[1745709721651,5.91,1819.0,1818.8,0.8208]
[1745709721820,5.91,1819.0,1818.8,6.31869582]
[1745709724569,5.49709007,1819.2,1818.8,6.31869582]
[1745709727941,5.49709007,1819.2,1818.8,6.37366982]
[1745709728325,5.49709007,1819.2,1818.8,6.31869582]
[1745709728526,5.49709007,1819.2,1818.8,8.01047659]
[1745709729038,5.49709007,1819.2,1818.9,4.637]
[1745709733675,5.4973048,1819.1,1818.9,4.637]
[1745709733825,5.4973048,1819.1,1819.0,4.637]
[1745709734673,5.4973048,1819.1,1818.6,0.8132]
[1745709734674,5.49817075,1818.8,1818.6,0.8132]
[1745709734869,5.49927212,1818.5,1818.4,4.637]
[1745709735370,5.49927212,1818.5,1818.3,4.637]
[1745709735569,1.35173794,1818.5,1817.9,0.8132]
[1745709735777,8.49946827,1818.4,1818.0,5.50050243]
[1745709735927,8.49946827,1818.4,1818.0,10.76887267]
[1745709736125,8.49946827,1818.4,1818.0,5.26837024]
[1745709737693,5.49968523,1818.3,1818.0,5.26837024]
[1745709737860,8.499446,1818.4,1818.0,10.76888877]
[1745709738244,8.499446,1818.4,1818.0,5.26837024]
[1745709738445,3.0,1818.4,1818.0,5.26837024]
[1745709738645,5.49967044,1818.3,1818.0,5.26837024]
[1745709739280,8.90584371,1818.4,1818.0,5.26837024]
[1745709739494,5.4997618,1818.3,1818.0,4.637]
[1745709739700,9.93160187,1818.4,1818.0,4.637]
[1745709740400,15.43120092,1818.4,1818.0,4.637]
[1745709740733,3.0,1818.4,1818.0,10.13738373]
[1745709740850,3.0,1818.4,1818.1,6.30343317]
[1745709743159,3.0,1818.5,1818.2,5.49986149]
[1745709743475,5.91,1818.6,1818.4,5.49932894]
[1745709743675,5.49826852,1818.8,1818.4,10.13732894]
[1745709743872,7.26654823,1818.8,1818.4,10.13732894]
[1745709744091,1.76827971,1818.8,1818.4,10.13732894]
[1745709744250,1.76827971,1818.8,1818.4,10.13718252]
[1745709744463,7.26645091,1818.8,1818.4,10.13718252]
[1745709744794,7.26645091,1818.8,1818.4,4.638]
[1745709745002,7.26645091,1818.8,1818.4,10.13729395]
[1745709745303,7.81658885,1818.8,1818.4,10.13729395]
[1745709745669,2.31841765,1818.8,1818.5,5.49903198]
[1745709745873,11.40792858,1818.9,1818.6,0.8033]
[1745709746074,14.95783914,1819.0,1818.6,0.8033]
[1745709746299,14.95783914,1819.0,1818.6,6.3019099]
[1745709746902,15.37362328,1819.0,1818.6,6.3019099]
[1745709747107,14.95783914,1819.0,1818.6,6.3019099]
[1745709749520,14.95783914,1819.0,1818.6,0.8033]
[1745709749699,5.49794689,1818.9,1818.6,0.8033]
[1745709751819,5.4985531,1818.7,1818.4,5.4206]
[1745709759137,16.38394897,1819.0,1818.6,5.49866353]
[1745709759297,3.40279251,1819.0,1818.7,0.7831]
[1745709759490,8.49753101,1819.0,1818.7,0.7831]
[1745709759695,8.49753101,1819.0,1818.8,4.637]
[1745709764602,3.0,1819.0,1818.8,4.637]
[1745709765029,6.45538723,1819.1,1818.8,4.637]
[1745709767145,5.49755704,1819.0,1818.8,4.637]
[1745709772723,9.04754834,1819.1,1818.8,4.637]
[1745709773250,14.54503927,1819.1,1818.8,4.637]
[1745709773748,9.04754834,1819.1,1818.8,4.637]
[1745709774246,14.54506184,1819.1,1818.8,4.637]
[1745709774553,5.49752801,1819.0,1818.8,4.637]
[1745709775657,5.49775231,1819.0,1818.8,4.637]
[1745709783339,8.91,1819.1,1818.8,4.637]
[1745709783670,8.91,1819.1,1818.8,5.18450797]
[1745709783831,14.40722606,1819.1,1818.8,5.18450797]
[1745709786163,8.49722606,1819.1,1818.8,5.18450797]
[1745709791079,8.49722606,1819.1,1818.8,4.637]
[1745709791872,5.49752611,1819.0,1818.9,4.635]
[1745709792038,6.04821218,1818.9,1818.8,4.635]
[1745709792235,6.04821218,1818.9,1818.7,4.635]
[1745709792649,11.546287,1818.9,1818.7,4.635]
[1745709792871,6.04821218,1818.9,1818.7,4.635]
[1745709793333,5.49763864,1819.0,1818.7,4.635]
[1745709793771,5.49763864,1819.0,1818.7,5.64837085]
[1745709793952,8.49737078,1819.1,1818.8,0.8321]
[1745709795673,3.0,1819.1,1818.8,0.8321]
[1745709795969,6.29954642,1819.4,1818.9,0.8321]
[1745709796174,5.49644642,1819.4,1819.0,5.49751407]
[1745709796466,3.0,1819.3,1819.1,4.635]
[1745709797379,5.49644642,1819.4,1819.1,4.635]
[1745709798444,5.49675425,1819.3,1819.1,4.635]
[1745709798668,6.46013794,1819.5,1819.1,10.5955719]
[1745709798878,5.91,1819.5,1819.3,5.49649256]
[1745709799045,6.04549544,1819.8,1819.3,6.32845787]
[1745709799244,12.75820299,1819.9,1819.5,5.49583316]
[1745709799483,6.044816,1820.0,1819.5,10.13083316]
[1745709799664,8.49499791,1819.9,1819.5,10.13083316]
[1745709799843,8.49499791,1819.9,1819.5,4.635]
[1745709800253,5.49531228,1819.8,1819.5,4.635]
[1745709802486,5.49531228,1819.8,1819.5,5.7313247]
[1745709802979,5.49555843,1819.7,1819.5,4.635]
[1745709803482,5.49555843,1819.7,1819.2,5.49679122]
[1745709803666,5.49614761,1819.5,1819.3,4.634]
[1745709804960,5.49587078,1819.6,1819.4,0.8299]
[1745709805267,5.49587416,1819.6,1819.4,0.8299]
[1745709806883,5.49631746,1819.4,1819.2,0.8299]
[1745709807062,5.49631746,1819.4,1819.3,4.632]
[1745709808474,3.0,1819.5,1819.3,5.4619]
[1745709808988,11.54195963,1819.6,1819.3,5.4619]
[1745709809567,5.49610723,1819.5,1819.3,5.4619]
[1745709809771,6.04599627,1819.6,1819.3,6.00809]
[1745709809961,5.49601639,1819.5,1819.3,6.00809]
[1745709812053,6.04604115,1819.6,1819.3,6.00809]
[1745709812971,5.49607815,1819.5,1819.3,6.00809]
[1745709816793,6.04603039,1819.6,1819.3,6.00809]
[1745709817105,5.4960716,1819.5,1819.3,6.00809]
[1745709821400,5.4960716,1819.5,1819.3,5.17819]
[1745709824001,6.0459658,1819.6,1819.3,5.17819]
[1745709824522,9.32761746,1819.4,1818.5,0.8291]
[1745709824680,5.49832056,1818.8,1818.5,5.4611]
[1745709824862,5.49867416,1818.7,1818.5,5.4611]
[1745709825062,5.49867416,1818.7,1818.5,6.00721]
[1745709825702,0.50965635,1818.6,1818.5,6.00721]
[1745709827674,6.00810562,1818.7,1818.5,6.00721]
[1745709828419,0.50965635,1818.7,1818.5,6.00721]
[1745709828715,6.45944963,1818.9,1818.5,6.00721]
[1745709828716,5.4979346,1818.9,1818.5,6.00721]
[1745709828885,5.4979346,1818.9,1818.6,0.600721]
[1745709829808,0.50894474,1818.8,1818.6,0.600721]
[1745709831578,5.4979346,1818.9,1818.6,0.600721]
[1745709835317,5.49814316,1818.8,1818.6,0.600721]
[1745709837521,5.49797358,1818.9,1818.6,0.600721]
[1745709838434,5.49813901,1818.8,1818.6,0.600721]
[1745709842443,3.55013794,1819.1,1818.6,0.600721]
[1745709842444,4.36503794,1819.1,1818.6,0.600721]
[1745709842745,5.49783055,1818.9,1818.6,0.600721]
[1745709844042,5.49783055,1818.9,1818.6,0.56661662]
[1745709844241,5.4977213,1819.0,1818.6,0.56661662]
[1745709844540,8.49722509,1819.1,1818.7,6.27585188]
[1745709844708,8.49722509,1819.1,1818.7,7.50996212]
[1745709846257,8.49722509,1819.1,1818.7,7.45996212]
[1745709846633,0.5087564,1819.0,1818.7,7.45996212]
[1745709847752,0.5087564,1819.0,1818.7,1.96171024]
[1745709847753,5.49789338,1818.9,1818.7,1.96171024]
[1745709847923,5.49770851,1819.0,1818.7,0.7276]
[1745709848259,5.49783568,1818.9,1818.7,0.7276]
[1745709848753,5.49783568,1818.9,1818.5,10.67701326]
[1745709848754,5.49813063,1818.8,1818.5,5.17811]
[1745709849059,5.49770832,1819.0,1818.6,4.632]
[1745709849226,5.49770832,1819.0,1818.6,10.13072148]
[1745709849420,5.49770832,1819.0,1818.7,0.7595]
[1745709850155,5.49741878,1819.1,1818.7,0.7595]
[1745709850654,0.50938599,1819.0,1818.7,0.7595]
[1745709851436,0.50938599,1819.0,1818.7,6.25789767]
[1745709852347,0.50938599,1818.9,1818.7,6.25789767]
[1745709852550,0.50938599,1818.9,1818.8,0.62578977]
[1745709853358,0.50938599,1819.0,1818.8,0.62578977]
[1745709854270,0.50938599,1818.9,1818.8,0.62578977]
[1745709854568,0.50938599,1818.9,1818.8,1.45108977]
[1745709855439,0.50938599,1818.9,1818.8,7.00419306]
[1745709856251,0.50938599,1819.2,1818.9,5.49771663]
[1745709856451,0.50938599,1819.2,1819.0,4.68696919]
[1745709856773,0.50938599,1819.2,1819.1,6.3225239]
[1745709857764,0.50938599,1819.7,1819.2,5.49685247]
[1745709857967,0.50938599,1819.7,1819.5,5.49586027]